bitfinex-derivatives/quotes_BTCF0:USTF0_20240824
["timestamp","ask_amount","ask_price","bid_price","bid_amount"]
[1724467745382,0.66731652,63887.0,63886.0,0.06272137]
[1724467745779,0.58909952,63887.0,63886.0,0.06272137]
[1724467746385,0.58909952,63887.0,63886.0,0.06273383]
[1724467747076,0.58909952,63887.0,63886.0,0.14095183]
[1724467747077,0.36909952,63887.0,63886.0,0.14095183]
[1724467747278,0.36909952,63887.0,63886.0,0.07845275]
[1724467747478,0.36909952,63887.0,63886.0,0.94805275]
[1724467747479,0.41599229,63887.0,63886.0,0.94805275]
[1724467747674,0.06252507,63892.0,63891.0,0.078212]
[1724467747875,0.06252507,63892.0,63891.0,0.14069415]
[1724467748886,0.06352507,63892.0,63891.0,0.14069415]
[1724467752583,0.001,63892.0,63891.0,0.078212]
[1724467752778,0.001,63892.0,63891.0,0.19579415]
[1724467753285,0.001,63892.0,63891.0,0.133312]
[1724467753785,0.001,63892.0,63891.0,0.188312]
[1724467757890,0.00725799,63892.0,63891.0,0.188312]
[1724467759888,0.36805799,63892.0,63891.0,0.078212]
[1724467760086,0.36805799,63892.0,63888.0,0.06248215]
[1724467760281,0.04686279,63889.0,63888.0,0.14069815]
[1724467760478,0.00625799,63889.0,63888.0,0.14069815]
[1724467760682,0.42432507,63892.0,63890.0,0.078213]
[1724467760890,0.00625851,63891.0,63890.0,0.078213]
[1724467763582,0.00625851,63891.0,63888.0,0.06248215]
[1724467763779,0.00625851,63890.0,63888.0,0.06248215]
[1724467763987,0.06252507,63891.0,63888.0,0.06248215]
[1724467764188,0.00625862,63889.0,63888.0,0.06248215]
[1724467764387,0.00625862,63890.0,63888.0,0.06248215]
[1724467764592,0.00625862,63889.0,63888.0,0.06248215]
[1724467764897,0.00625862,63889.0,63887.0,0.078217]
[1724467764898,0.05313186,63889.0,63887.0,0.078217]
[1724467765084,0.00625862,63888.0,63887.0,0.078217]
[1724467765287,0.05313186,63888.0,63887.0,0.078217]
[1724467765486,0.04687324,63888.0,63887.0,0.078217]
[1724467765688,4e-05,63889.0,63888.0,0.078216]
[1724467765881,0.00104,63889.0,63888.0,0.078176]
[1724467766086,0.001,63889.0,63888.0,0.27522412]
[1724467766782,0.001,63889.0,63888.0,0.19732669]
[1724467767390,0.40767324,63892.0,63888.0,0.19732669]
[1724467767391,0.40767324,63892.0,63891.0,0.078212]
[1724467767797,0.4139312,63892.0,63891.0,0.078212]
[1724467768886,0.4139312,63892.0,63891.0,0.947772]
[1724467769591,0.3618,63892.0,63891.0,0.947772]
[1724467773190,0.3618,63892.0,63891.0,1.0258657]
[1724467773692,0.001,63892.0,63891.0,1.0258657]
[1724467778297,0.001,63892.0,63891.0,1.06691504]
[1724467778499,0.40767324,63896.0,63891.0,1.06691504]
[1724467778500,0.3608,63896.0,63895.0,0.078207]
[1724467778799,0.36705767,63896.0,63895.0,0.078207]
[1724467779000,0.36705767,63896.0,63895.0,0.19734378]
[1724467779495,0.36705767,63896.0,63895.0,0.2753888]
[1724467779702,0.37205767,63896.0,63895.0,0.19734378]
[1724467780100,0.3698,63896.0,63895.0,0.19734378]
[1724467780294,0.37605762,63896.0,63895.0,0.19734378]
[1724467780489,0.37605762,63896.0,63895.0,0.27537301]
[1724467780901,0.01525762,63896.0,63895.0,0.27537301]
[1724467781201,0.37605762,63896.0,63895.0,0.27537301]
[1724467781593,0.37605762,63896.0,63895.0,0.15623623]
[1724467781994,0.37605762,63896.0,63895.0,0.27537012]
[1724467782596,0.37605762,63896.0,63895.0,0.15623623]
[1724467782597,0.01525762,63896.0,63895.0,0.15623623]
[1724467782799,0.37605762,63896.0,63895.0,0.15623623]
[1724467783297,0.37605762,63896.0,63895.0,0.27537014]
[1724467783491,0.37605762,63896.0,63895.0,0.15623623]
[1724467784495,0.37605762,63896.0,63895.0,0.078207]
[1724467785206,0.01525762,63896.0,63895.0,0.078207]
[1724467790295,0.009,63896.0,63895.0,0.078207]
[1724467790503,0.0152574,63896.0,63895.0,0.078207]
[1724467792302,0.01525748,63896.0,63895.0,0.078207]
[1724467793703,0.01525748,63896.0,63895.0,0.15623623]
[1724467794606,0.01525748,63896.0,63895.0,0.27537025]
[1724467795312,0.07335748,63896.0,63895.0,0.27537025]
[1724467796502,0.07335748,63896.0,63895.0,0.19734102]
[1724467796699,0.07335745,63896.0,63895.0,0.19734102]
[1724467797311,0.12023069,63896.0,63895.0,0.078207]
[1724467797505,0.07335745,63896.0,63895.0,0.078207]
[1724467799913,0.0671,63896.0,63895.0,0.078207]
[1724467800105,0.07335795,63896.0,63895.0,0.078207]
[1724467800311,0.43415795,63896.0,63895.0,0.078207]
[1724467801608,0.43415774,63896.0,63895.0,0.078207]
[1724467807008,0.43415774,63896.0,63895.0,0.15619258]
[1724467807720,0.43415774,63896.0,63895.0,0.27533211]
[1724467807920,0.48106186,63896.0,63895.0,0.19734653]
[1724467809020,0.47480412,63896.0,63895.0,0.19734653]
[1724467809226,0.48106177,63896.0,63895.0,0.19734653]
[1724467809812,0.48106177,63896.0,63895.0,0.078207]
[1724467809813,0.02030666,63896.0,63895.0,0.078207]
[1724467810013,0.09379778,63918.0,63917.0,0.07818]
[1724467810217,0.07813806,63936.0,63917.0,0.95818088]
[1724467810418,0.15046924,63943.0,63935.0,0.078158]
[1724467810419,0.112,63942.0,63935.0,0.078158]
[1724467810622,0.4728,63942.0,63935.0,0.078158]
[1724467810920,0.4728,63942.0,63938.0,0.06238773]
[1724467811123,0.112,63942.0,63936.0,0.078156]
[1724467811512,0.112,63942.0,63938.0,0.06213341]
[1724467811916,0.14,63942.0,63938.0,0.06213341]
[1724467812215,0.14,63942.0,63937.0,0.06213341]
[1724467812421,0.22,63939.0,63933.0,0.06213341]
[1724467812724,0.22,63939.0,63932.0,0.36103475]
[1724467813630,4e-05,63933.0,63932.0,0.36103475]
[1724467815230,0.01404,63933.0,63932.0,0.36103475]
[1724467815430,0.02804,63933.0,63932.0,0.36103475]
[1724467815732,0.02804,63933.0,63932.0,0.00023475]
[1724467820338,0.02804,63933.0,63932.0,0.54763675]
[1724467820839,0.00168023,63933.0,63932.0,0.94763675]
[1724467821035,0.00168023,63933.0,63932.0,1.00977016]
[1724467821540,0.00168023,63933.0,63932.0,0.94763675]
[1724467822027,0.001,63933.0,63932.0,0.94763675]
[1724467822230,0.002,63933.0,63932.0,1.01177016]
[1724467822537,0.002,63933.0,63932.0,0.94963675]
[1724467823438,0.019616,63943.0,63941.0,0.078151]
[1724467823840,0.019616,63943.0,63942.0,0.07815]
[1724467824933,0.019616,63943.0,63942.0,0.07915]
[1724467825639,0.019616,63943.0,63942.0,0.08115]
[1724467832146,0.00023475,63945.0,63944.0,0.078147]
[1724467832340,0.00023475,63945.0,63944.0,0.438947]
[1724467833242,0.00123475,63945.0,63944.0,0.438947]
[1724467837535,0.00123475,63945.0,63944.0,0.50108041]
[1724467838342,0.00123475,63945.0,63944.0,0.438947]
[1724467839642,0.00123475,63945.0,63944.0,0.55799226]
[1724467839945,0.00123475,63945.0,63944.0,0.55799329]
[1724467844943,0.00123475,63945.0,63944.0,0.55799517]
[1724467845744,0.00123475,63945.0,63944.0,0.07782004]
[1724467845942,0.00123475,63945.0,63942.0,0.07782004]
[1724467845943,0.078148,63943.0,63942.0,0.07782004]
[1724467846150,0.078148,63943.0,63936.0,0.438957]
[1724467846151,0.00123475,63945.0,63939.0,0.07782004]
[1724467846343,0.3608,63941.0,63938.0,0.07782004]
[1724467846543,0.0564,63940.0,63938.0,0.07782004]
[1724467847044,0.05794,63939.0,63938.0,0.07782004]
[1724467847445,0.05794,63939.0,63936.0,0.438957]
[1724467847647,0.0616,63938.0,63936.0,0.438957]
[1724467847842,0.0546,63938.0,63936.0,0.438957]
[1724467848551,0.0476,63938.0,63936.0,0.438957]
[1724467848750,0.04264,63938.0,63936.0,0.438957]
[1724467848941,0.04264,63938.0,63936.0,0.087157]
[1724467849546,0.04264,63938.0,63936.0,0.094157]
[1724467849547,0.04364,63938.0,63936.0,0.094157]
[1724467851251,0.04364,63938.0,63937.0,0.078156]
[1724467852556,0.04364,63938.0,63937.0,0.084156]
[1724467852758,0.04464,63938.0,63937.0,0.087156]
[1724467857050,0.04464,63938.0,63937.0,0.447956]
[1724467857257,0.04464,63938.0,63937.0,0.087156]
[1724467859066,0.04464,63938.0,63932.0,0.00023475]
[1724467859067,0.87464,63938.0,63932.0,0.00023475]
[1724467859262,0.078158,63936.0,63932.0,0.00023475]
[1724467859864,4e-05,63933.0,63932.0,0.00023475]
[1724467860971,4e-05,63933.0,63932.0,0.00623475]
[1724467861261,4e-05,63933.0,63932.0,0.01623475]
[1724467861463,0.00104,63933.0,63932.0,0.21346391]
[1724467861668,0.00104,63933.0,63932.0,0.63166391]
[1724467862055,0.00204,63933.0,63932.0,0.63166391]
[1724467862860,0.00204,63933.0,63932.0,0.63165827]
[1724467864567,0.00204,63933.0,63932.0,0.63165833]
[1724467864971,0.00204,63933.0,63932.0,0.27085833]
[1724467865165,0.00204,63933.0,63932.0,0.63165833]
[1724467865665,0.00204,63933.0,63932.0,0.27085833]
[1724467865866,0.00204,63933.0,63932.0,0.63165833]
[1724467867675,0.00204,63933.0,63932.0,0.6316586]
[1724467867864,0.00204,63933.0,63932.0,0.63165863]
[1724467868465,0.0579,63939.0,63932.0,0.63165863]
[1724467868771,0.0579,63939.0,63937.0,0.07783848]
[1724467870570,0.0579,63939.0,63938.0,0.07783848]
[1724467870769,0.0589,63939.0,63938.0,0.07783848]
[1724467871572,0.0589,63939.0,63938.0,0.19690036]
[1724467871874,0.0599,63939.0,63938.0,0.19690036]
[1724467872271,0.0589,63939.0,63938.0,0.19690036]
[1724467872467,0.0599,63939.0,63938.0,0.20290036]
[1724467873469,0.0589,63939.0,63938.0,0.12506188]
[1724467873667,0.0589,63939.0,63938.0,0.12906188]
[1724467874775,0.137053,63939.0,63938.0,0.12906188]
[1724467877574,0.137053,63939.0,63938.0,0.12906455]
[1724467882981,0.137053,63939.0,63938.0,0.12906454]
[1724467890379,1.006253,63939.0,63938.0,0.11906454]
[1724467890581,0.078154,63938.0,63937.0,0.07795765]
[1724467890774,0.078157,63936.0,63935.0,0.07795765]
[1724467891578,0.078158,63935.0,63934.0,0.07795765]
[1724467891782,0.195658,63935.0,63934.0,0.07795765]
[1724467891987,0.188658,63935.0,63934.0,0.07795765]
[1724467892377,0.188698,63935.0,63934.0,0.07795765]
[1724467892684,0.078159,63934.0,63933.0,0.07795765]
[1724467893390,0.073199,63934.0,63933.0,0.07795765]
[1724467894185,0.074199,63934.0,63933.0,0.08095765]
[1724467894688,0.075199,63934.0,63933.0,0.003]
[1724467897386,0.00204,63934.0,63933.0,0.003]
[1724467898686,0.00204,63934.0,63933.0,0.08116]
[1724467900287,0.00204,63934.0,63933.0,0.44196]
[1724467906292,0.00204,63934.0,63933.0,0.003]
[1724467907293,0.00204,63934.0,63933.0,0.20001738]
[1724467908790,0.00104,63934.0,63933.0,0.19701738]
[1724467909000,0.00204,63934.0,63933.0,0.19901738]
[1724467909793,0.00104,63934.0,63933.0,0.19701738]
[1724467909994,0.00204,63934.0,63933.0,0.19901738]
[1724467911490,0.00104,63934.0,63933.0,0.12107088]
[1724467911691,0.00204,63934.0,63933.0,0.12107088]
[1724467912196,0.00104,63934.0,63933.0,0.12107088]
[1724467912398,0.00204,63934.0,63933.0,0.12107088]
[1724467914396,0.00104,63934.0,63933.0,0.11907088]
[1724467914699,0.00104,63934.0,63933.0,0.12107088]
[1724467916196,0.00104,63934.0,63933.0,0.48187088]
[1724467917907,0.00104,63934.0,63933.0,0.56003188]
[1724467918295,4e-05,63934.0,63933.0,0.55803188]
[1724467918502,4e-05,63934.0,63933.0,0.56003188]
[1724467918899,4e-05,63934.0,63933.0,0.19923188]
[1724467919504,0.0579,63939.0,63933.0,0.29276768]
[1724467919698,0.0579,63939.0,63937.0,0.07800102]
[1724467920108,0.0579,63939.0,63938.0,0.07800102]
[1724467920407,0.078156,63937.0,63936.0,0.07800102]
[1724467920603,0.078156,63937.0,63933.0,0.002]
[1724467920604,0.078157,63936.0,63934.0,0.07800102]
[1724467921706,0.078159,63935.0,63934.0,0.07800102]
[1724467922200,0.078159,63935.0,63933.0,0.07800102]
[1724467923108,0.080159,63935.0,63933.0,0.07800102]
[1724467924999,0.082159,63935.0,63933.0,0.07800102]
[1724467925307,0.081159,63935.0,63933.0,0.07800102]
[1724467931307,0.07816,63934.0,63933.0,0.07800102]
[1724467931514,0.07816,63934.0,63932.0,0.07823577]
[1724467931714,0.0582,63933.0,63932.0,0.00023475]
[1724467932210,0.05824,63933.0,63932.0,0.00023475]
[1724467932706,0.136401,63933.0,63932.0,0.00023475]
[1724467933817,0.497201,63933.0,63932.0,0.00023475]
[1724467934207,0.498201,63933.0,63932.0,0.00023475]
[1724467934612,0.498201,63933.0,63932.0,0.07823577]
[1724467937314,0.137401,63933.0,63932.0,0.1973118]
[1724467939018,0.137401,63933.0,63932.0,0.07823577]
[1724467939421,0.137401,63933.0,63932.0,0.00023475]
[1724467940708,0.05924,63933.0,63932.0,0.00023475]
[1724467940920,0.05924,63933.0,63932.0,0.07823577]
[1724467944026,0.00104,63933.0,63932.0,0.15639777]
[1724467944535,0.00104,63933.0,63932.0,0.19746942]
[1724467947427,0.00104,63933.0,63932.0,0.34238674]
[1724467948136,0.00104,63933.0,63932.0,0.70318674]
[1724467948336,0.00104,63933.0,63932.0,0.55826942]
[1724467953140,0.00104,63933.0,63932.0,0.43919675]
[1724467953340,0.00104,63933.0,63932.0,0.55825764]
[1724467953545,0.0644,63944.0,63932.0,0.55825764]
[1724467953546,0.0644,63944.0,63936.0,0.078157]
[1724467953843,0.0644,63944.0,63939.0,0.07792878]
[1724467955039,0.0694,63944.0,63939.0,0.07792878]
[1724467955529,0.0694,63944.0,63939.0,0.15608178]
[1724467955734,0.0644,63944.0,63939.0,0.15608178]
[1724467955933,0.0724,63944.0,63939.0,0.15608178]
[1724467956235,0.0774,63944.0,63939.0,0.15608178]
[1724467956436,0.0774,63944.0,63939.0,0.078153]
[1724467956637,0.0724,63944.0,63939.0,0.15608178]
[1724467957138,0.0804,63944.0,63939.0,0.15608178]
[1724467957836,0.0804,63944.0,63943.0,0.06232276]
[1724467959037,0.0764,63944.0,63943.0,0.06232276]
[1724467959237,0.0884,63944.0,63943.0,0.06232276]
[1724467959837,0.166548,63944.0,63943.0,0.06232276]
[1724467960034,0.95756,63944.0,63943.0,0.06232031]
[1724467960245,0.95756,63944.0,63934.0,0.07792878]
[1724467960246,0.078155,63938.0,63934.0,0.07792878]
[1724467960431,0.062,63937.0,63932.0,0.43896353]
[1724467960839,0.0658,63936.0,63932.0,0.43896353]
[1724467961139,4e-05,63933.0,63932.0,0.51712453]
[1724467961342,4e-05,63933.0,63932.0,0.63619199]
[1724467962345,0.00104,63933.0,63932.0,0.63619199]
[1724467963838,0.00104,63933.0,63932.0,0.51712453]
[1724467964039,0.00104,63933.0,63932.0,0.63619211]
[1724467964240,0.00104,63933.0,63932.0,0.55826333]
[1724467965446,0.00104,63933.0,63932.0,0.19746333]
[1724467966844,0.0658,63936.0,63932.0,0.19746331]
[1724467967147,0.0658,63936.0,63934.0,0.07794818]
[1724467968048,0.0668,63936.0,63934.0,0.07794818]
[1724467968752,0.0658,63936.0,63934.0,0.07794818]
[1724467968945,0.0688,63936.0,63934.0,0.07794818]
[1724467969338,0.0708,63936.0,63935.0,0.07794818]
[1724467970251,0.0708,63936.0,63935.0,0.19701502]
[1724467970449,0.0718,63936.0,63935.0,0.07794818]
[1724467970650,0.0718,63936.0,63935.0,0.19701503]
[1724467971755,0.0728,63936.0,63935.0,0.19701503]
[1724467972247,0.0728,63936.0,63935.0,0.11906685]
[1724467978649,0.0728,63936.0,63935.0,0.11906758]
[1724467983053,0.0728,63936.0,63935.0,0.19722658]
[1724467987063,0.0728,63936.0,63935.0,0.19722486]
[1724467993464,0.007,63936.0,63935.0,0.19722486]
[1724467994358,0.007,63936.0,63935.0,0.55802486]
[1724467994558,0.007,63936.0,63935.0,0.70293992]
[1724467994761,0.007,63936.0,63935.0,0.55802486]
[1724467995366,0.3608,63944.0,63943.0,0.078149]
[1724467995554,0.3608,63944.0,63943.0,0.15618096]
[1724467995867,0.3608,63944.0,63943.0,0.27523621]
[1724467996062,0.3608,63944.0,63943.0,0.15618096]
[1724467996263,0.3608,63944.0,63943.0,0.078149]
[1724467996664,0.3728,63944.0,63943.0,0.078149]
[1724467996861,0.3848,63944.0,63943.0,0.078149]
[1724467997073,0.3848,63944.0,63943.0,0.15618096]
[1724467997370,0.3848,63944.0,63943.0,0.078149]
[1724467997761,0.024,63944.0,63943.0,0.15618096]
[1724467998462,0.024,63944.0,63943.0,0.078149]
[1724467998860,0.024,63944.0,63943.0,0.15618096]
[1724467999057,0.024,63944.0,63943.0,0.19720057]
[1724468000065,0.0624699,63950.0,63943.0,0.11905157]
[1724468000260,0.0624699,63952.0,63951.0,0.078139]
[1724468000666,0.0624699,63953.0,63950.0,0.06235919]
[1724468000960,0.0624699,63952.0,63949.0,0.06235919]
[1724468001158,0.1276699,63952.0,63949.0,0.06235919]
[1724468001867,0.1416699,63952.0,63951.0,0.00096]
[1724468002373,0.1276699,63952.0,63949.0,0.001]
[1724468002570,0.1416699,63952.0,63949.0,0.001]
[1724468003067,0.1496699,63952.0,63951.0,0.001]
[1724468003268,0.0872,63952.0,63951.0,0.001]
[1724468003677,0.0862,63952.0,63951.0,0.001]
[1724468005171,0.0792,63952.0,63951.0,0.001]
[1724468005368,0.1496699,63952.0,63951.0,0.002]
[1724468006475,0.0872,63952.0,63951.0,0.002]
[1724468007173,0.1496699,63952.0,63951.0,0.002]
[1724468014281,0.165338,63952.0,63951.0,0.002]
[1724468015183,0.526138,63952.0,63951.0,0.002]
[1724468015384,0.448,63952.0,63951.0,0.002]
[1724468016079,0.0872,63952.0,63951.0,0.002]
[1724468022274,0.0872,63952.0,63951.0,0.06435919]
[1724468022479,0.0872,63952.0,63951.0,0.002]
[1724468023298,0.0872,63952.0,63951.0,0.06435919]
[1724468024680,0.022,63952.0,63951.0,0.14249819]
[1724468025288,0.08450266,63952.0,63951.0,0.080139]
[1724468025488,0.022,63952.0,63951.0,0.080139]
[1724468031682,0.022,63952.0,63951.0,0.002]
[1724468031889,0.165838,63952.0,63951.0,0.002]
[1724468035588,0.22834066,63952.0,63951.0,0.002]
[1724468037703,0.58914066,63952.0,63951.0,0.002]
[1724468038492,0.526638,63952.0,63951.0,0.002]
[1724468038890,0.526638,63952.0,63951.0,0.06440907]
[1724468042502,0.526638,63952.0,63951.0,0.002]
[1724468042900,0.165838,63952.0,63951.0,0.002]
[1724468043103,0.526638,63952.0,63951.0,0.002]
[1724468047704,0.526638,63952.0,63951.0,0.06441119]
[1724468049699,0.887438,63952.0,63951.0,0.06441119]
[1724468050298,0.887438,63952.0,63951.0,0.002]
[1724468051606,0.165838,63952.0,63951.0,0.002]
[1724468051799,0.887438,63952.0,63951.0,0.002]
[1724468053899,0.526638,63952.0,63951.0,0.002]
[1724468055004,0.887438,63952.0,63951.0,0.002]
[1724468057510,0.165838,63952.0,63951.0,0.002]
[1724468057707,0.887438,63952.0,63951.0,0.002]
[1724468057895,0.165838,63952.0,63951.0,0.002]
[1724468058100,0.887438,63952.0,63951.0,0.002]
[1724468059412,0.165838,63952.0,63951.0,0.002]
[1724468059806,0.887438,63952.0,63951.0,0.002]
[1724468060001,0.526638,63952.0,63951.0,0.002]
[1724468060205,0.887438,63952.0,63951.0,0.002]
[1724468062011,0.165838,63952.0,63951.0,0.002]
[1724468062211,0.887438,63952.0,63951.0,0.002]
[1724468062417,0.165838,63952.0,63951.0,0.002]
[1724468062714,0.887438,63952.0,63951.0,0.002]
[1724468064214,0.165838,63952.0,63951.0,0.002]
[1724468064413,0.887438,63952.0,63951.0,0.002]
[1724468067510,0.165838,63952.0,63951.0,0.002]
[1724468067713,0.887438,63952.0,63951.0,0.002]
[1724468068711,0.165838,63952.0,63951.0,0.002]
[1724468069016,0.887438,63952.0,63951.0,0.002]
[1724468069811,1.333096,63952.0,63951.0,0.002]
[1724468070114,0.078143,63948.0,63944.0,0.00023455]
[1724468070311,0.3608,63945.0,63944.0,0.00023455]
[1724468070916,0.438986,63945.0,63944.0,0.00023455]
[1724468071306,0.438986,63945.0,63944.0,0.00123455]
[1724468071512,0.438986,63945.0,63944.0,0.06365966]
[1724468071719,0.438986,63945.0,63944.0,0.00123455]
[1724468071922,0.447986,63945.0,63944.0,0.00123455]
[1724468072622,0.447986,63945.0,63944.0,0.06364763]
[1724468072816,0.51045923,63945.0,63944.0,0.00223455]
[1724468073615,0.51945923,63945.0,63944.0,0.00223455]
[1724468074011,0.456986,63945.0,63944.0,0.00223455]
[1724468077123,0.46142322,63945.0,63944.0,0.00223455]
[1724468077420,0.078147,63944.0,63943.0,0.01920687]
[1724468077625,0.20792023,63944.0,63937.0,0.07807074]
[1724468077923,0.3608,63938.0,63937.0,0.07807074]
[1724468078517,0.078156,63937.0,63936.0,0.07807074]
[1724468078715,0.078156,63937.0,63936.0,0.19713453]
[1724468079320,0.078196,63937.0,63936.0,0.19713453]
[1724468080414,0.079196,63937.0,63936.0,0.19713453]
[1724468080826,0.439996,63937.0,63936.0,0.19713453]
[1724468082427,0.439996,63937.0,63936.0,0.07807074]
[1724468083521,0.078157,63936.0,63935.0,0.07807074]
[1724468083716,0.143657,63936.0,63935.0,0.07807074]
[1724468084021,0.078162,63932.0,63931.0,0.00023455]
[1724468084721,0.078202,63932.0,63931.0,0.00023455]
[1724468084922,0.077162,63932.0,63931.0,0.00023455]
[1724468085520,0.438962,63932.0,63931.0,0.00623455]
[1724468085823,0.438962,63932.0,63931.0,0.01123455]
[1724468086227,0.078162,63932.0,63931.0,0.01123455]
[1724468086524,0.438962,63932.0,63931.0,0.01123455]
[1724468092635,0.3618,63932.0,63931.0,0.01123455]
[1724468093822,0.3618,63932.0,63931.0,0.08939755]
[1724468094227,0.001,63932.0,63931.0,0.08939755]
[1724468097225,0.001,63932.0,63931.0,0.45019755]
[1724468097425,4e-05,63936.0,63934.0,0.078159]
[1724468098836,4e-05,63936.0,63934.0,0.081159]
[1724468100036,4e-05,63936.0,63935.0,0.078158]
[1724468101531,4e-05,63936.0,63935.0,0.079158]
[1724468113532,0.06251323,63936.0,63935.0,0.079158]
[1724468114345,4e-05,63936.0,63935.0,0.2763009]
[1724468117546,4e-05,63936.0,63935.0,0.19823016]
[1724468122339,4e-05,63936.0,63935.0,0.19823008]
[1724468127046,4e-05,63936.0,63935.0,0.29186844]
[1724468127246,0.06247323,63940.0,63935.0,0.12007208]
[1724468127449,0.3608,63942.0,63939.0,0.09373255]
[1724468127647,0.3608,63942.0,63941.0,0.07806104]
[1724468127845,0.3608,63942.0,63941.0,0.19722308]
[1724468128247,0.06753455,63944.0,63941.0,0.11907208]
[1724468128450,0.06753455,63944.0,63943.0,0.078149]
[1724468129557,0.07353455,63944.0,63943.0,0.078149]
[1724468130453,0.06753455,63944.0,63943.0,0.078149]
[1724468130758,0.08353455,63944.0,63943.0,0.080149]
[1724468134955,0.01623455,63944.0,63943.0,0.080149]
[1724468135357,0.01623455,63944.0,63943.0,0.19919572]
[1724468137563,0.01623455,63944.0,63943.0,0.27709102]
[1724468137862,0.01623455,63944.0,63943.0,0.19919572]
[1724468138761,0.01623455,63944.0,63943.0,0.55999572]
[1724468142366,0.01623455,63944.0,63943.0,0.19919572]
[1724468142564,0.0634,63951.0,63948.0,0.078141]
[1724468142764,0.0634,63951.0,63949.0,0.14035283]
[1724468143767,0.0734,63951.0,63949.0,0.14035283]
[1724468144462,0.0874,63951.0,63949.0,0.14135283]
[1724468145469,0.0874,63951.0,63949.0,0.079141]
[1724468145857,0.0774,63951.0,63949.0,0.079141]
[1724468146163,0.0774,63951.0,63949.0,0.080141]
[1724468148466,0.0774,63951.0,63949.0,0.14235283]
[1724468151468,0.0774,63951.0,63950.0,0.06221183]
[1724468152871,0.0794,63951.0,63950.0,0.06321183]
[1724468153167,0.0654,63951.0,63950.0,0.06321183]
[1724468153370,0.0774,63951.0,63950.0,0.06421183]
[1724468154572,0.0774,63951.0,63950.0,0.002]
[1724468155164,0.0774,63951.0,63950.0,0.06421647]
[1724468155369,0.0774,63951.0,63950.0,0.002]
[1724468156367,0.0774,63951.0,63950.0,0.08014]
[1724468160766,0.00023455,63956.0,63955.0,0.078134]
[1724468160969,0.00023455,63956.0,63955.0,0.14040375]
[1724468161170,0.00023455,63956.0,63955.0,0.078134]
[1724468161882,0.01223455,63956.0,63955.0,0.079134]
[1724468162380,0.01423455,63956.0,63955.0,0.080134]
[1724468163369,0.01423455,63956.0,63955.0,0.27692793]
[1724468163876,0.01423455,63956.0,63955.0,0.002]
[1724468164078,0.07823455,63956.0,63955.0,0.002]
[1724468164277,0.07823455,63956.0,63955.0,0.07976479]
[1724468164481,0.07823455,63956.0,63955.0,0.19879468]
[1724468164673,0.07823455,63956.0,63955.0,0.12102989]
[1724468164873,0.07823455,63956.0,63955.0,0.12102992]
[1724468165276,0.07823455,63956.0,63955.0,0.19890923]
[1724468165475,0.07823455,63956.0,63955.0,0.19891329]
[1724468169989,0.01423455,63956.0,63955.0,0.07988337]
[1724468170683,0.01423455,63956.0,63955.0,0.3628]
[1724468171278,0.01423455,63956.0,63955.0,0.440934]
[1724468172086,0.0642,63962.0,63961.0,0.078127]
[1724468173393,0.36543225,63967.0,63961.0,0.078127]
[1724468173394,0.3608,63967.0,63965.0,0.078122]
[1724468173791,0.3608,63967.0,63965.0,0.15595499]
[1724468174085,0.3608,63967.0,63965.0,0.078122]
[1724468174286,0.4292,63967.0,63965.0,0.078122]
[1724468174978,0.4292,63967.0,63965.0,0.079122]
[1724468176385,0.4292,63967.0,63966.0,0.06221858]
[1724468177490,0.4292,63967.0,63966.0,0.06421858]
[1724468179389,0.4292,63967.0,63966.0,0.002]
[1724468180893,0.4292,63967.0,63966.0,0.06421858]
[1724468181385,0.4292,63967.0,63966.0,0.002]
[1724468182183,0.0684,63967.0,63966.0,0.002]
[1724468182389,0.4292,63967.0,63966.0,0.002]
[1724468183689,0.4292,63967.0,63966.0,0.04863823]
[1724468183890,0.4292,63967.0,63966.0,0.002]
[1724468187585,0.507319,63967.0,63966.0,0.002]
[1724468194093,0.507319,63967.0,63966.0,0.06421858]
[1724468197297,0.507319,63967.0,63966.0,0.002]
[1724468197298,0.146519,63967.0,63966.0,0.002]
[1724468197492,0.507319,63967.0,63966.0,0.002]
[1724468200503,0.507319,63967.0,63966.0,0.04871187]
[1724468201197,0.58548737,63967.0,63966.0,0.04871187]
[1724468202296,0.58548737,63967.0,63966.0,0.002]
[1724468202695,0.22468737,63967.0,63966.0,0.002]
[1724468202896,0.58548737,63967.0,63966.0,0.002]
[1724468203097,0.58548737,63967.0,63966.0,0.04875058]
[1724468203308,0.507319,63967.0,63966.0,0.002]
[1724468206905,0.146519,63967.0,63966.0,0.002]
[1724468207293,0.507319,63967.0,63966.0,0.002]
[1724468208396,0.507319,63967.0,63966.0,0.08012]
[1724468208397,0.3608,63967.0,63966.0,0.08012]
[1724468208597,0.00443645,63973.0,63966.0,0.12100545]
[1724468208598,0.0624886,63973.0,63966.0,0.12100545]
[1724468208800,0.0624886,63973.0,63972.0,0.078113]
[1724468208994,0.15621675,63978.0,63973.0,0.078112]
[1724468208995,0.0624886,63974.0,63973.0,0.078112]
[1724468209504,0.0624886,63975.0,63973.0,0.078112]
[1724468209908,0.0624886,63976.0,63972.0,0.07791999]
[1724468210400,0.0624886,63976.0,63975.0,0.06229847]
[1724468210796,0.0624886,63976.0,63973.0,0.001]
[1724468211505,0.0624886,63976.0,63973.0,0.002]
[1724468211704,4e-05,63974.0,63973.0,0.002]
[1724468212909,4e-05,63974.0,63973.0,0.001]
[1724468213705,4e-05,63974.0,63973.0,0.002]
[1724468220307,4e-05,63974.0,63973.0,0.06424096]
[1724468220608,4e-05,63974.0,63973.0,0.002]
[1724468223808,0.078151,63974.0,63973.0,0.002]
[1724468224511,0.078151,63974.0,63973.0,0.06423309]
[1724468224711,4e-05,63974.0,63973.0,0.06423309]
[1724468226711,4e-05,63974.0,63973.0,0.06323309]
[1724468227110,4e-05,63974.0,63973.0,0.06423309]
[1724468229809,0.078151,63974.0,63973.0,0.06423309]
[1724468231309,0.078151,63974.0,63973.0,0.06424553]
[1724468232713,0.078151,63974.0,63973.0,0.002]
[1724468238115,0.1406396,63974.0,63973.0,0.002]
[1724468238309,0.078151,63974.0,63973.0,0.002]